fUST/lending_fUST_20251117
["ID","MTS","AMOUNT","RATE_DAILY","PERIOD"]
[394158190,1763333433741,-151.0,0.0004968,120]
[394158191,1763333433750,-151.0,0.0004968,120]
[394158192,1763333433759,-151.0,0.0004968,120]
[394158193,1763333433768,-151.0,0.0004968,120]
[394158194,1763333433777,-151.0,0.0004968,120]
[394158195,1763333433786,-163.385607,0.0004968,120]
[394158196,1763333433795,-151.0,0.0004968,120]
[394158197,1763333433804,-151.0,0.0004968,120]
[394158198,1763333433813,-151.0,0.0004968,120]
[394158199,1763333433822,-151.0,0.0004968,120]
[394158200,1763333433832,-151.0,0.0004968,120]
[394158201,1763333433841,-151.0,0.0004968,120]
[394158202,1763333433850,-151.0,0.0004968,120]
[394158203,1763333433859,-151.0,0.0004968,120]
[394158204,1763333433869,-151.0,0.0004968,120]
[394158205,1763333433879,-151.0,0.0004968,120]
[394158206,1763333433892,-151.0,0.0004968,120]
[394158207,1763333433902,-151.0,0.0004968,120]
[394158208,1763333433911,-151.0,0.0004968,7]
[394158209,1763333433920,-151.0,0.0004968,120]
[394158210,1763333433931,-151.0,0.0004968,7]
[394158211,1763333433940,-151.0,0.0004968,120]
[394158212,1763333433949,-151.0,0.0004968,120]
[394158213,1763333433960,-298.091965,0.0004968,120]
[394158214,1763333433970,-151.0,0.0004968,120]
[394158215,1763333433981,-10000.0,0.0004968,120]
[394158216,1763333433990,-10000.0,0.0004968,120]
[394158217,1763333434000,-10000.0,0.0004968,120]
[394158218,1763333434009,-10000.0,0.0004968,120]
[394158219,1763333434018,-151.0,0.0004968,30]
[394158220,1763333434028,-153.651281,0.0004968,30]
[394158221,1763333434037,-10000.0,0.0004968,120]
[394158222,1763333434047,-10000.0,0.0004968,120]
[394158223,1763333434056,-10000.0,0.0004968,120]
[394158224,1763333434065,-10000.0,0.0004968,120]
[394158225,1763333434074,-10000.0,0.0004968,120]
[394158226,1763333434083,-151.0,0.0004968,120]
[394158227,1763333434093,-10000.0,0.0004968,120]
[394158228,1763333434102,-151.0,0.0004968,120]
[394158229,1763333434112,-10000.0,0.0004968,120]
[394158230,1763333434121,-176.659398,0.0004968,120]
[394158231,1763333434130,-10000.0,0.0004968,120]
[394158232,1763333434139,-10000.0,0.0004968,120]
[394158233,1763333434148,-10000.0,0.0004968,120]
[394158234,1763333434158,-10000.0,0.0004968,120]
[394158235,1763333434167,-10000.0,0.0004968,120]
[394158236,1763333434177,-10000.0,0.0004968,120]
[394158237,1763333434187,-10000.0,0.0004968,120]
[394158238,1763333434196,-151.0,0.0004968,120]
[394158239,1763333434205,-151.0,0.0004968,120]
[394158240,1763333434214,-151.0,0.0004968,120]
[394158241,1763333434225,-151.0,0.0004968,120]
[394158242,1763333434234,-151.0,0.0004968,120]
[394158243,1763333434243,-151.0,0.0004968,120]
[394158244,1763333434252,-151.0,0.0004968,120]
[394158245,1763333434263,-151.0,0.0004968,120]
[394158246,1763333434272,-151.0,0.0004968,120]
[394158247,1763333434282,-151.0,0.0004968,120]
[394158248,1763333434291,-472.320066,0.0004968,120]
[394158249,1763333434301,-472.320066,0.0004968,120]
[394158250,1763333434311,-472.320066,0.0004968,120]
[394158251,1763333434320,-472.320066,0.0004968,120]
[394158252,1763333434330,-472.320066,0.0004968,120]
[394158253,1763333434339,-151.0,0.0004968,120]
[394158254,1763333434348,-472.320066,0.0004968,120]
[394158255,1763333434357,-151.0,0.0004968,120]
[394158256,1763333434367,-472.320066,0.0004968,120]
[394158257,1763333434376,-472.320066,0.0004968,120]
[394158258,1763333434386,-151.0,0.0004968,120]
[394158259,1763333434395,-151.0,0.0004968,120]
[394158260,1763333434405,-150.0,0.00049689,28]
[394158261,1763333434416,-153.57,0.000497,14]
[394158262,1763333434426,-500.0,0.00049763,3]
[394158263,1763333434435,-500.0,0.00049763,120]
[394158264,1763333434445,-233.52221231,0.00049763,7]
[394158265,1763333434455,-500.0,0.00049779,7]
[394158266,1763333434466,-500.0,0.00049779,2]
[394158267,1763333434478,-150.0,0.00049779,4]
[394158268,1763333434488,-150.0,0.00049788,120]
[394158269,1763333434498,-150.0,0.00049788,7]
[394158270,1763333434507,-150.0,0.00049788,3]
[394158271,1763333434517,-150.0,0.00049799,2]
[394158272,1763333434526,-995.01,0.000498,14]
[394158273,1763333434535,-151.0,0.0004989,120]
[394158274,1763333434544,-151.0,0.0004989,120]
[394158275,1763333434554,-151.0,0.0004989,120]
[394158276,1763333434564,-151.0,0.0004989,7]
[394158277,1763333434574,-151.0,0.0004989,120]
[394158278,1763333434583,-151.0,0.0004989,120]
[394158279,1763333434592,-151.0,0.0004989,120]
[394158280,1763333434602,-151.0,0.0004989,120]
[394158281,1763333434611,-151.0,0.0004989,120]
[394158282,1763333434620,-151.0,0.0004989,120]
[394158283,1763333434630,-151.0,0.0004989,120]
[394158284,1763333434639,-151.0,0.0004989,120]
[394158285,1763333434648,-151.0,0.0004989,120]
[394158286,1763333434658,-151.0,0.0004989,120]
[394158287,1763333434667,-151.0,0.0004989,120]
[394158288,1763333434763,-151.0,0.0004989,120]
[394158289,1763333434772,-151.0,0.0004989,120]
[394158290,1763333434782,-151.0,0.0004989,120]
[394158291,1763333434791,-151.0,0.0004989,120]
[394158292,1763333434800,-151.0,0.0004989,120]
[394158293,1763333434810,-151.0,0.0004989,120]
[394158294,1763333434819,-905.78,0.000499,14]
[394158295,1763333434828,-500.0,0.00050037,3]
[394158296,1763333434837,-500.0,0.00050037,120]
[394158297,1763333434846,-593.19069692,0.00050053,7]
[394158298,1763333434855,-500.0,0.00050053,2]
[394158299,1763333434865,-500.0,0.00050311,3]
[394158300,1763333434874,-500.0,0.00050311,120]
[394158301,1763333434884,-500.0,0.00050327,2]
[394158302,1763333434896,-500.0,0.00050585,3]
[394158303,1763333434906,-500.0,0.00050585,120]
[394158304,1763333434916,-500.0,0.00050601,2]
[394158305,1763333434927,-164.22872862,0.00050746,10]
[394158306,1763333434937,-500.0,0.00050859,3]
[394158307,1763333434946,-475.73072403,0.00050859,120]
[394158308,1763333434956,-500.0,0.00050875,2]
[394158309,1763333434966,-500.0,0.00051133,3]
[394158310,1763333434980,-151.0,0.00051139,120]
[394158311,1763333434990,-151.0,0.00051139,120]
[394158312,1763333434999,-151.0,0.00051139,120]
[394158313,1763333435009,-151.879279,0.00051139,120]
[394158314,1763333435018,-151.0,0.00051139,120]
[394158315,1763333435028,-151.0,0.00051139,120]
[394158316,1763333435037,-151.0,0.00051139,120]
[394158317,1763333435047,-151.0,0.00051139,120]
[394158318,1763333435056,-151.0,0.00051139,120]
[394158319,1763333435065,-151.0,0.00051139,120]
[394158320,1763333435075,-151.0,0.00051139,120]
[394158321,1763333435084,-151.0,0.00051139,120]
[394158322,1763333435093,-151.0,0.00051139,120]
[394158323,1763333435103,-151.0,0.00051139,120]
[394158324,1763333435111,-151.0,0.00051139,120]
[394158325,1763333435121,-151.0,0.00051139,120]
[394158326,1763333435130,-155.909557,0.00051139,120]
[394158327,1763333435139,-151.0,0.00051139,120]
[394158328,1763333435148,-151.0,0.00051139,120]
[394158329,1763333435158,-151.0,0.00051139,120]
[394158330,1763333435167,-151.0,0.00051139,120]
[394158331,1763333435176,-151.0,0.00051139,120]
[394158332,1763333435185,-151.0,0.00051139,120]
[394158333,1763333435194,-151.0,0.00051139,120]
[394158334,1763333435204,-151.0,0.00051139,120]
[394158335,1763333435213,-151.0,0.00051139,120]
[394158336,1763333435222,-151.0,0.00051139,120]
[394158337,1763333435233,-205.970019,0.00051139,120]
[394158338,1763333435242,-151.0,0.00051139,120]
[394158339,1763333435252,-205.970019,0.00051139,120]
[394158340,1763333435261,-205.970019,0.00051139,120]
[394158341,1763333435270,-205.970019,0.00051139,120]
[394158342,1763333435280,-151.0,0.00051139,120]
[394158343,1763333435289,-310.97368,0.00051139,120]
[394158344,1763333435299,-310.97368,0.00051139,120]
[394158345,1763333435308,-310.97368,0.00051139,120]
[394158346,1763333435317,-195.305957,0.00051139,120]
[394158347,1763333435326,-310.97368,0.00051139,120]
[394158348,1763333435336,-195.305957,0.00051139,120]
[394158349,1763333435345,-195.305957,0.00051139,120]
[394158350,1763333435354,-195.305957,0.00051139,120]
[394158351,1763333435364,-151.0,0.00051139,120]
[394158352,1763333435374,-151.0,0.00051139,120]
[394158353,1763333435383,-151.0,0.00051139,120]
[394158354,1763333435393,-480.79735,0.00051139,120]
[394158355,1763333435404,-294.652046,0.00051139,120]
[394158356,1763333435414,-480.79735,0.00051139,120]
[394158357,1763333435424,-480.79735,0.00051139,120]
[394158358,1763333435434,-480.79735,0.00051139,120]
[394158359,1763333435444,-152.519229,0.00051139,120]
[394158360,1763333435454,-151.0,0.00051139,120]
[394158361,1763333435463,-151.0,0.00051139,120]
[394158362,1763333435476,-151.0,0.00051139,120]
[394158363,1763333435484,-281.540579,0.00051139,120]
[394158364,1763333435494,-151.0,0.00051139,120]
[394158365,1763333435504,-151.0,0.00051139,120]
[394158366,1763333435513,-151.0,0.00051139,120]
[394158367,1763333435522,-151.0,0.00051139,120]
[394158368,1763333435532,-406.62112071,0.00051145,2]
[394158369,1763333435541,-500.0,0.00051149,2]
[394158370,1763333435550,-500.0,0.00051407,3]
[394158371,1763333435559,-603.05748711,0.00051423,2]
[394158372,1763333435569,-162.04,0.000515,30]
[394158373,1763333435578,-500.0,0.00051681,3]
[394158374,1763333435587,-685.72,0.00051792,2]
[394158375,1763333435596,-151.0,0.00051918,120]
[394158376,1763333435606,-500.0,0.00051955,3]
[394158377,1763333435615,-151.0,0.00052055,120]
[394158378,1763333435624,-151.0,0.00052192,120]
[394158379,1763333435633,-270.59113921,0.00052229,3]
[394158380,1763333435643,-178.88451936,0.00052329,120]
[394158381,1763333435651,-5370.44051165,0.0005295,28]
[394158382,1763333435659,-152.0,0.00053,120]
[394158383,1763333435668,-37755.05941188,0.00053008,120]
[394158384,1763333435677,-151.0,0.00053008,120]
[394158385,1763333435686,-151.0,0.00053008,120]
[394158386,1763333435696,-151.0,0.00053008,120]
[394158387,1763333435705,-151.0,0.00053008,7]
[394158388,1763333435714,-151.0,0.00053008,120]
[394158389,1763333435725,-10000.0,0.00053008,120]
[394158390,1763333435735,-10000.0,0.00053008,120]
[394158391,1763333435744,-10000.0,0.00053008,120]
[394158392,1763333435754,-10000.0,0.00053008,120]
[394158393,1763333435763,-10000.0,0.00053008,120]
[394158394,1763333435772,-151.0,0.00053008,120]
[394158395,1763333435781,-10000.0,0.00053008,120]
[394158396,1763333435791,-10000.0,0.00053008,120]
[394158397,1763333435800,-10000.0,0.00053008,120]
[394158398,1763333435810,-10000.0,0.00053008,120]
[394158399,1763333435820,-151.0,0.00053008,120]
[394158400,1763333435831,-191.51105,0.00053008,120]
[394158401,1763333435841,-151.0,0.00053008,120]
[394158402,1763333435850,-151.0,0.00053008,120]
[394158403,1763333435860,-204.823134,0.00053008,120]
[394158404,1763333435871,-472.320066,0.00053008,120]
[394158405,1763333435882,-472.320066,0.00053008,120]
[394158406,1763333435892,-472.320066,0.00053008,120]
[394158407,1763333435901,-151.0,0.00053008,120]
[394158408,1763333435911,-472.320066,0.00053008,120]
[394158409,1763333435920,-151.0,0.00053008,120]
[394158410,1763333435931,-151.0,0.00053108,120]
[394158411,1763333435940,-151.0,0.00053108,120]
[394158412,1763333435950,-151.0,0.00053108,120]
[394158413,1763333435961,-151.0,0.00053108,120]
[394158414,1763333435970,-151.0,0.00053108,120]
[394158415,1763333435981,-151.0,0.00053108,120]
[394158416,1763333435990,-151.0,0.00053108,120]
[394158417,1763333436000,-151.0,0.00053108,120]
[394158418,1763333436009,-151.0,0.00053108,120]
[394158419,1763333436018,-151.0,0.00053108,120]
[394158420,1763333436027,-151.0,0.00053108,120]
[394158421,1763333436037,-287.987509,0.00053108,120]
[394158422,1763333436046,-151.0,0.00053108,120]
[394158423,1763333436055,-267.79785,0.00053108,120]
[394158424,1763333436064,-205.970019,0.00053108,120]
[394158425,1763333436073,-151.0,0.00053108,120]
[394158426,1763333436082,-205.970019,0.00053108,120]
[394158427,1763333436091,-205.970019,0.00053108,120]
[394158428,1763333436100,-205.970019,0.00053108,120]
[394158429,1763333436109,-163.12784728,0.00053108,120]
[394158430,1763333436118,-310.97368,0.00053108,120]
[394158431,1763333436128,-310.97368,0.00053108,120]
[394158432,1763333436137,-310.97368,0.00053108,120]
[394158433,1763333436147,-195.305957,0.00053108,120]
[394158434,1763333436156,-310.97368,0.00053108,120]
[394158435,1763333436166,-195.305957,0.00053108,120]
[394158436,1763333436174,-195.305957,0.00053108,120]
[394158437,1763333436184,-195.305957,0.00053108,120]
[394158438,1763333436193,-151.0,0.00053108,120]
[394158439,1763333436202,-151.937648,0.00053108,120]
[394158440,1763333436211,-480.79735,0.00053108,120]
[394158441,1763333436220,-480.79735,0.00053108,120]
[394158442,1763333436232,-480.79735,0.00053108,120]
[394158443,1763333436242,-480.79735,0.00053108,120]
[394158444,1763333436251,-151.0,0.00053108,120]
[394158445,1763333436260,-151.0,0.00053108,120]
[394158446,1763333436270,-151.0,0.00053108,120]
[394158447,1763333436279,-151.0,0.00053108,120]
[394158448,1763333436288,-151.0,0.00053108,120]
[394158449,1763333436297,-152.998437,0.00053108,120]
[394158450,1763333436306,-500.0,0.00053356,60]
[394158451,1763333436316,-905.78,0.000535,14]
[394158452,1763333436325,-151.0,0.00054163,120]
[394158453,1763333436335,-464.70985224,0.00054218,2]
[394158454,1763333436344,-500.0,0.00054452,60]
[394158455,1763333436354,-151.0,0.00054795,120]
[394158456,1763333436363,-151.0,0.00054795,120]
[394158457,1763333436373,-151.0,0.00054795,120]
[394158458,1763333436383,-151.0,0.00054795,120]
[394158459,1763333436392,-151.0,0.00054795,120]
[394158460,1763333436402,-151.0,0.00054795,120]
[394158461,1763333436412,-151.0,0.00054795,120]
[394158462,1763333436421,-2000.0,0.00054999,120]
[394158463,1763333436431,-500.0,0.00054999,120]
[394158464,1763333436440,-500.0,0.00054999,120]
[394158465,1763333436450,-500.0,0.00054999,120]
[394158466,1763333436460,-500.0,0.00054999,120]
[394158467,1763333436470,-500.0,0.00054999,120]
[394158468,1763333436482,-500.0,0.00054999,120]
[394158469,1763333436492,-500.0,0.00054999,120]
[394158470,1763333436501,-500.0,0.00054999,120]
[394158471,1763333436510,-500.0,0.00054999,120]
[394158472,1763333436519,-500.0,0.00054999,120]
[394158473,1763333436528,-154.240958,0.00055,120]
[394158474,1763333436538,-1000.0,0.00055068,120]
[394158475,1763333436547,-638.05035814,0.00055068,120]
[394158476,1763333436557,-3000.0,0.000552,120]
[394158477,1763333436566,-1000.0,0.00055342,120]
[394158478,1763333436576,-409.62806681,0.00055447,4]
[394158479,1763333436585,-500.0,0.00055548,120]
[394158480,1763333436594,-1000.0,0.00055616,120]
[394158481,1763333436603,-995.01,0.000557,14]
[394158482,1763333436612,-1046.54839005,0.0005589,120]
[394158483,1763333436622,-1000.0,0.00056,120]
[394158484,1763333436631,-400.0,0.00056,120]
[394158485,1763333436640,-162.0,0.00056,120]
[394158486,1763333436649,-1028.58,0.00056108,2]
[394158487,1763333436659,-3000.0,0.000562,120]
[394158488,1763333436668,-151.0,0.0005634,120]
[394158489,1763333436677,-151.0,0.0005634,120]
[394158490,1763333436686,-151.0,0.0005634,120]
[394158491,1763333436695,-151.0,0.0005634,120]
[394158492,1763333436704,-151.0,0.0005634,120]
[394158493,1763333436713,-151.0,0.0005634,120]
[394158494,1763333436722,-207.751968,0.0005634,120]
[394158495,1763333436734,-184.6151934,0.0005634,120]
[394158496,1763333436743,-75940.98997835,0.0005644,120]
[394159109,1763333446699,-172.31276558,0.00049379,120]
[394159111,1763333446709,-151.0,0.0004967,120]
[394159112,1763333446719,-151.0,0.0004967,120]
[394159113,1763333446728,-151.0,0.0004967,120]
[394159115,1763333446739,-151.0,0.0004968,120]
[394159116,1763333446748,-151.0,0.0004968,120]
[394159118,1763333446758,-151.0,0.0004968,120]
[394159120,1763333446768,-151.0,0.0004968,120]
[394159121,1763333446777,-151.0,0.00053008,120]
[394159128,1763333446791,-151.0,0.00053008,120]
[394159130,1763333446887,-151.0,0.00053008,120]
[394159132,1763333446901,-644.67,0.0005643,10]
[394159133,1763333446910,-151.0,0.0005644,120]
[394159135,1763333446919,-151.0,0.0005644,120]
[394159137,1763333446928,-151.0,0.0005644,120]
[394159138,1763333446938,-217.639689,0.0005644,120]
[394159140,1763333446946,-151.0,0.0005644,120]
[394159141,1763333446956,-205.970019,0.0005644,120]
[394159143,1763333446966,-205.970019,0.0005644,120]
[394159145,1763333446976,-205.970019,0.0005644,120]
[394159146,1763333446987,-205.9700116,0.0005644,120]
[394159148,1763333446998,-310.97368,0.0005644,120]
[394159150,1763333447008,-310.97368,0.0005644,120]
[394159151,1763333447018,-310.97368,0.0005644,120]
[394159153,1763333447027,-195.305957,0.0005644,120]
[394159155,1763333447037,-310.973686,0.0005644,120]
[394159156,1763333447046,-195.305957,0.0005644,120]
[394159158,1763333447056,-195.305957,0.0005644,120]
[394159159,1763333447065,-195.305958,0.0005644,120]
[394159161,1763333447074,-151.0,0.0005644,120]
[394159163,1763333447084,-480.79735,0.0005644,120]
[394159164,1763333447094,-480.79735,0.0005644,120]
[394159166,1763333447104,-480.79735,0.0005644,120]
[394159168,1763333447113,-480.79734,0.0005644,120]
[394159169,1763333447122,-151.0,0.0005644,120]
[394159171,1763333447132,-151.0,0.0005644,120]
[394159172,1763333447141,-151.0,0.0005644,120]
[394159174,1763333447151,-151.0,0.0005644,120]
[394159176,1763333447160,-151.0,0.0005644,120]
[394159177,1763333447169,-151.0,0.0005644,7]
[394159178,1763333447177,-151.0,0.0005644,120]
[394159179,1763333447188,-10000.0,0.0005644,120]
[394159180,1763333447197,-4495.02707856,0.0005644,120]
[394159181,1763333447232,-5504.97292144,0.0005644,120]
[394159182,1763333447244,-10000.0,0.0005644,120]
[394159183,1763333447254,-10000.0,0.0005644,120]
[394159184,1763333447264,-10000.0,0.0005644,120]
[394159185,1763333447275,-10000.0,0.0005644,120]
[394159186,1763333447285,-10000.0,0.0005644,120]
[394159187,1763333447294,-10000.0,0.0005644,120]
[394159188,1763333447304,-10000.0,0.0005644,120]
[394159189,1763333447314,-151.0,0.0005644,120]
[394159190,1763333447324,-151.0,0.0005644,120]
[394159191,1763333447334,-151.0,0.0005644,120]
[394159192,1763333447343,-472.320066,0.0005644,120]
[394159193,1763333447352,-472.320066,0.0005644,120]
[394159194,1763333447363,-151.0,0.0005644,120]
[394159196,1763333447372,-472.320066,0.0005644,120]
[394159197,1763333447382,-472.320066,0.0005644,120]
[394159199,1763333447391,-151.0,0.0005644,120]
[394159201,1763333447400,-151.0,0.0005644,120]
[394159203,1763333447410,-245.789108,0.0005644,120]
[394159205,1763333447419,-15253.95770657,0.0005644,120]
[394159457,1763333493840,203.96559971,0.00031765,30]
[394159458,1763333625569,129.3038674,0.00038495,2]
[394159460,1763333706130,315.03,0.00033004,2]
[394159461,1763333706547,630.06,0.00036004,2]
[394159462,1763333868063,303.0,0.00037444,2]
[394159468,1763334430110,-1025.6272539,0.00038313,20]
[394159469,1763334533073,400.59295362,0.00038,2]
[394159471,1763334545833,150.0,0.00037387,48]
[394159472,1763334546113,150.0,0.00036837,56]
[394159473,1763334546369,150.0,0.00033414,117]
[394159474,1763334546630,150.0,0.00033059,6]
[394159475,1763334546863,150.0,0.00029584,35]
[394159476,1763334547122,150.0,0.0002779,16]
[394159574,1763334632796,-150.0,0.00038312,20]
[394159576,1763334632806,-1086.0,0.00038318,20]
[394159578,1763334632815,-150.0,0.00038803,44]
[394159581,1763334632824,-429.56929604,0.0004,2]
[394159584,1763334632833,-150.0,0.00042348,31]
[394159587,1763334632842,-706.34412,0.00042849,2]
[394159590,1763334632851,-299.15,0.00044113,2]
[394159592,1763334632860,-598.3,0.00048123,2]
[394159594,1763334632870,-150.0,0.00048967,5]
[394159604,1763334632976,-600.0,0.00049205,120]
[394159606,1763334632986,-550.0,0.00049279,5]
[394159608,1763334632996,-1780.49157484,0.0004928,2]
[394159610,1763334633006,-400.0,0.00049288,5]
[394159611,1763334633015,-193.91195864,0.00049369,120]
[394159612,1763334633024,-500.0,0.00049369,120]
[394159613,1763334633034,-500.0,0.00049369,120]
[394159614,1763334633043,-500.0,0.00049369,120]
[394159615,1763334633053,-500.0,0.00049369,120]
[394159616,1763334633062,-166.93053533,0.00049369,120]
[394159617,1763334633072,-500.0,0.00049369,120]
[394159618,1763334633081,-500.0,0.00049369,120]
[394159619,1763334633091,-500.0,0.00049369,120]
[394159620,1763334633101,-500.0,0.00049369,120]
[394159621,1763334633110,-500.0,0.00049369,120]
[394159622,1763334633119,-233.67542362,0.00049369,120]
[394159623,1763334633128,-500.0,0.00049369,120]
[394159624,1763334633138,-500.0,0.00049369,120]
[394159625,1763334633147,-500.0,0.00049369,120]
[394159626,1763334633157,-500.0,0.00049369,120]
[394159627,1763334633166,-500.0,0.00049369,120]
[394159628,1763334633177,-466.76552572,0.00049369,120]
[394159629,1763334633186,-500.0,0.00049369,120]
[394159630,1763334633196,-500.0,0.00049369,120]
[394159631,1763334633205,-568.32874836,0.00049369,120]
[394159632,1763334633214,-500.0,0.00049369,120]
[394159633,1763334633224,-500.0,0.00049369,120]
[394159634,1763334633233,-364369.84002,0.0004937,4]
[394159635,1763334633242,-1000.0,0.00049378,120]
[394159636,1763334633252,-500.0,0.00049378,2]
[394159637,1763334633261,-2030.35,0.000494,14]
[394159638,1763334633270,-162.05,0.000494,30]
[394159639,1763334633280,-996.02765368,0.00049652,120]
[394159640,1763334633290,-150.0,0.00049679,95]
[394159641,1763334633299,-192.32273748,0.00050751,2]
[394159642,1763334633309,-190.22241128,0.00050751,120]
[394159643,1763334633319,-301.5498737,0.00050858,2]
[394159644,1763334633328,-151.0,0.00051139,120]
[394159645,1763334633338,-150.0,0.00051499,30]
[394159646,1763334633346,-500.0,0.00051945,120]
[394159647,1763334633355,-450.0,0.00052056,15]
[394159648,1763334633364,-897.44,0.00052133,2]
[394159649,1763334633373,-150.0,0.00052228,3]
[394159650,1763334633383,-151.0,0.00052906,120]
[394159651,1763334633392,-150.0,0.00052949,28]
[394159652,1763334633401,-600.0,0.00053589,120]
[394159653,1763334633413,-344.62842708,0.00054118,2]
[394159654,1763334633427,-150.0,0.00054451,60]
[394159655,1763334633436,-151.0,0.00054673,120]
[394159656,1763334633446,-650.0,0.00054685,120]
[394159657,1763334633456,-500.0,0.00054796,120]
[394159658,1763334633465,-303.77982234,0.00054961,4]
[394159659,1763334633474,-31352.67135624,0.00055,120]
[394159660,1763334633484,-3000.0,0.000552,120]
[394159661,1763334633495,-500.0,0.00055446,4]
[394159662,1763334633505,-500.0,0.00055699,14]
[394159663,1763334633517,-346.18092746,0.00055791,2]
[394159664,1763334633526,-500.0,0.00055892,120]
[394159665,1763334633536,-500.0,0.00056107,2]
[394159666,1763334633546,-1196.59,0.00056144,2]
[394159667,1763334633556,-3000.0,0.000562,120]
[394159668,1763334633565,-500.0,0.00056429,10]
[394159669,1763334633575,-500.0,0.00056439,120]
[394159670,1763334633585,-500.0,0.00056439,7]
[394159671,1763334633595,-192287.1798,0.0005644,120]
[394159672,1763334633605,-154.473212,0.0005644,120]
[394159673,1763334633614,-2081.39,0.0005644,120]
[394159674,1763334633622,-206.6895203,0.0005644,120]
[394159675,1763334633630,-500.0,0.00056473,15]
[394159676,1763334633640,-724.63,0.000565,14]
[394159677,1763334633650,-253.1600759,0.00056661,4]
[394159678,1763334633660,-385.7090425,0.00056988,120]
[394159679,1763334633669,-1000.0,0.00057,120]
[394159680,1763334633681,-1000.0,0.00057021,15]
[394159681,1763334633691,-151.0,0.000571,23]
[394159682,1763334633700,-1594.80703105,0.00057568,15]
[394159683,1763334633709,-479.53,0.00057809,120]
[394159684,1763334633719,-11536.4233971,0.000579,2]
[394159685,1763334633729,-1000.0,0.00058,120]
[394159686,1763334633738,-801457.12384878,0.00058,2]
[394159687,1763334633747,-404.23466,0.00058,120]
[394159688,1763334633757,-400.0,0.00058,120]
[394159689,1763334633766,-33068.641,0.00058,120]
[394159690,1763334633776,-25243.64051725,0.00058,120]
[394159691,1763334633785,-151.0,0.00058,120]
[394159692,1763334633795,-151.0,0.00058,120]
[394159693,1763334633804,-151.0,0.00058,120]
[394159694,1763334633814,-151.0,0.00058,120]
[394159695,1763334633823,-151.0,0.00058,120]
[394159696,1763334633833,-151.0,0.00058,120]
[394159697,1763334633843,-151.0,0.00058,120]
[394159698,1763334633853,-151.0,0.00058,120]
[394159699,1763334633862,-151.0,0.00058,120]
[394159700,1763334633871,-4038.896172,0.00058,120]
[394159701,1763334633881,-3000.0,0.000582,120]
[394159702,1763334633891,-69835.18618618,0.00058875,60]
[394159703,1763334633901,-839.41597913,0.00059,30]
[394159704,1763334633911,-1000.0,0.00059,120]
[394159705,1763334633923,-302.880559,0.0005912,2]
[394159706,1763334633933,-170089.2765,0.000592,120]
[394159707,1763334633942,-151.0,0.000592,120]
[394159708,1763334633952,-151.0,0.000592,120]
[394159709,1763334633961,-151.0,0.000592,120]
[394159710,1763334633971,-151.0,0.000592,120]
[394159711,1763334633980,-151.0,0.000592,120]
[394159712,1763334633990,-228.280258,0.000592,120]
[394159713,1763334634000,-161.24715,0.000592,120]
[394159714,1763334634009,-4038.896172,0.000592,120]